bitfinex-derivatives/quotes_BTCF0:USTF0_20241005
["timestamp","ask_amount","ask_price","bid_price","bid_amount"]
[1728128182882,0.17584115,62266.0,62265.0,0.10234352]
[1728128183785,0.11963415,62266.0,62265.0,0.10234352]
[1728128184678,0.11963415,62266.0,62265.0,0.13414352]
[1728128188588,0.056206,62267.0,62266.0,0.056207]
[1728128188790,0.056206,62267.0,62266.0,0.30808291]
[1728128192683,0.056206,62267.0,62266.0,0.30802201]
[1728128193383,0.0112,62269.0,62268.0,0.056205]
[1728128193584,0.0112,62272.0,62268.0,0.29108612]
[1728128193785,0.0112,62272.0,62269.0,0.21126532]
[1728128194084,0.056203,62271.0,62270.0,0.11488112]
[1728128202486,0.056203,62271.0,62270.0,0.21126532]
[1728128203684,0.056203,62271.0,62269.0,0.056204]
[1728128203884,0.12654583,62271.0,62269.0,0.056204]
[1728128204087,0.07034283,62270.0,62269.0,0.056204]
[1728128206992,0.07034131,62270.0,62269.0,0.056204]
[1728128207395,0.12654531,62270.0,62269.0,0.056204]
[1728128210805,0.12654531,62270.0,62269.0,0.30788693]
[1728128210806,0.056204,62270.0,62269.0,0.30788693]
[1728128211609,0.056204,62270.0,62269.0,0.056204]
[1728128211802,0.056204,62270.0,62269.0,0.30789809]
[1728128218507,0.0112,62272.0,62269.0,0.30789809]
[1728128218709,0.067402,62272.0,62271.0,0.09639582]
[1728128218908,0.056202,62272.0,62271.0,0.21122177]
[1728128219714,0.3608,62273.0,62271.0,0.21122177]
[1728128219906,0.3608,62273.0,62272.0,0.17102795]
[1728128220709,0.3608,62273.0,62272.0,0.17076064]
[1728128221907,0.3608,62273.0,62272.0,0.17176064]
[1728128224220,0.3608,62273.0,62272.0,0.26815646]
[1728128224610,0.3608,62273.0,62272.0,0.26816137]
[1728128225008,0.3608,62273.0,62272.0,0.26816097]
[1728128225709,0.48042952,62273.0,62272.0,0.057202]
[1728128227422,0.48042952,62273.0,62272.0,0.08659997]
[1728128229920,0.48042953,62273.0,62272.0,0.08659997]
[1728128233721,0.3608,62273.0,62272.0,0.2011782]
[1728128234530,0.3608,62273.0,62272.0,0.20115918]
[1728128239230,0.3608,62273.0,62272.0,0.297555]
[1728128239426,0.3608,62273.0,62272.0,0.20115918]
[1728128240030,0.0562,62274.0,62272.0,0.20115918]
[1728128240230,0.0562,62274.0,62273.0,0.11455921]
[1728128240936,0.12654024,62274.0,62272.0,0.08659997]
[1728128241124,0.0310178,62273.0,62272.0,0.08659997]
[1728128241830,0.0310178,62273.0,62272.0,0.08559997]
[1728128242227,0.07034048,62273.0,62272.0,0.08559997]
[1728128242734,0.07034048,62273.0,62272.0,0.08659997]
[1728128248936,0.0562,62274.0,62273.0,0.056201]
[1728128249125,0.0562,62274.0,62273.0,0.17061986]
[1728128250735,0.0562,62274.0,62273.0,0.17161986]
[1728128253936,0.0562,62274.0,62273.0,0.25192392]
[1728128255937,0.0562,62274.0,62273.0,0.057201]
[1728128255938,0.21683768,62274.0,62273.0,0.057201]
[1728128256144,0.33646085,62274.0,62273.0,0.057201]
[1728128257248,0.17582317,62274.0,62273.0,0.057201]
[1728128257748,0.33646085,62274.0,62273.0,0.057201]
[1728128258449,0.33646122,62274.0,62273.0,0.057201]
[1728128258645,0.17582354,62274.0,62273.0,0.057201]
[1728128258848,0.33646122,62274.0,62273.0,0.057201]
[1728128259235,0.33646122,62274.0,62273.0,0.418001]
[1728128259650,0.17582354,62274.0,62273.0,0.418001]
[1728128262653,0.17582354,62274.0,62273.0,0.057201]
[1728128263052,0.17582354,62274.0,62273.0,0.418001]
[1728128263857,0.17582354,62274.0,62273.0,0.53226492]
[1728128263858,0.0562,62274.0,62273.0,0.53226492]
[1728128268451,0.044,62275.0,62273.0,0.53226492]
[1728128268654,0.044,62275.0,62274.0,0.17046392]
[1728128268861,0.0328,62275.0,62274.0,0.17046392]
[1728128270557,0.0328,62275.0,62274.0,0.17146392]
[1728128270766,0.0328,62275.0,62274.0,0.17246392]
[1728128271056,0.0328,62275.0,62274.0,0.0582]
[1728128271057,0.17731985,62275.0,62274.0,0.0582]
[1728128271257,0.29693581,62275.0,62274.0,0.0582]
[1728128273954,0.15241596,62275.0,62274.0,0.0582]
[1728128274356,0.19343768,62275.0,62274.0,0.0582]
[1728128275057,0.31305364,62275.0,62274.0,0.0582]
[1728128278958,0.16063768,62275.0,62274.0,0.26898941]
[1728128280961,0.056198,62276.0,62274.0,0.26898941]
[1728128281167,0.056198,62276.0,62275.0,0.17059259]
[1728128282966,0.056198,62276.0,62275.0,0.17159259]
[1728128283163,0.0112,62278.0,62276.0,0.056198]
[1728128283365,0.067397,62278.0,62277.0,0.11439359]
[1728128283569,0.056197,62278.0,62277.0,0.11439359]
[1728128285061,0.056197,62278.0,62277.0,0.11539359]
[1728128285863,0.056197,62278.0,62277.0,0.11639359]
[1728128286069,0.056197,62278.0,62277.0,0.05017614]
[1728128287768,0.087497,62278.0,62277.0,0.05017614]
[1728128287958,0.087497,62278.0,62277.0,0.002]
[1728128289870,0.056199,62275.0,62274.0,0.06423485]
[1728128290064,0.176199,62275.0,62274.0,0.06423485]
[1728128291063,0.176199,62275.0,62274.0,0.06623485]
[1728128293877,0.176199,62275.0,62274.0,0.12243485]
[1728128294171,0.176199,62275.0,62274.0,0.0582]
[1728128294172,0.33680563,62275.0,62274.0,0.0582]
[1728128294361,0.45642624,62275.0,62274.0,0.0582]
[1728128295660,0.45642624,62275.0,62274.0,0.002]
[1728128296566,0.44038288,62275.0,62274.0,0.002]
[1728128297764,0.29581961,62275.0,62274.0,0.002]
[1728128298158,0.24653475,62275.0,62274.0,0.002]
[1728128300968,0.176199,62275.0,62274.0,0.002]
[1728128308972,0.20721658,62275.0,62274.0,0.002]
[1728128309371,0.20721664,62275.0,62274.0,0.002]
[1728128314080,0.20721661,62275.0,62274.0,0.002]
[1728128316081,0.176199,62275.0,62274.0,0.002]
[1728128321183,0.176199,62275.0,62272.0,0.08029357]
[1728128321184,0.657919,62275.0,62272.0,0.08029357]
[1728128321384,0.056202,62272.0,62271.0,0.08029357]
[1728128321588,0.176202,62272.0,62271.0,0.19402423]
[1728128322684,0.176202,62272.0,62271.0,0.19502423]
[1728128323077,0.056202,62272.0,62271.0,0.19502423]
[1728128323283,0.176202,62272.0,62271.0,0.19502423]
[1728128324087,0.53663241,62272.0,62271.0,0.001]
[1728128324283,0.65863241,62272.0,62271.0,0.001]
[1728128326194,0.53863241,62272.0,62271.0,0.001]
[1728128326396,0.65863241,62272.0,62271.0,0.001]
[1728128326787,0.60934351,62272.0,62271.0,0.001]
[1728128328290,0.63777428,62272.0,62271.0,0.001]
[1728128328587,0.68706612,62272.0,62271.0,0.001]
[1728128331104,0.20663277,62272.0,62271.0,0.001]
[1728128331295,0.56743277,62272.0,62271.0,0.001]
[1728128340409,0.56743277,62272.0,62271.0,0.06523527]
[1728128341310,0.56743277,62272.0,62271.0,0.001]
[1728128341500,0.56743277,62272.0,62271.0,0.06523264]
[1728128342811,0.20663277,62272.0,62271.0,0.06523264]
[1728128343010,0.56743277,62272.0,62271.0,0.06523264]
[1728128343211,0.56743277,62272.0,62271.0,0.06523391]
[1728128344208,0.56743277,62272.0,62271.0,0.001]
[1728128344512,0.56743277,62272.0,62271.0,0.06523339]
[1728128346205,0.6377802,62272.0,62271.0,0.001]
[1728128347506,0.68707325,62272.0,62271.0,0.001]
[1728128349613,0.6377802,62272.0,62271.0,0.001]
[1728128351010,0.63778039,62272.0,62271.0,0.001]
[1728128351705,0.63778039,62272.0,62266.0,0.0112]
[1728128351706,0.056206,62267.0,62266.0,0.0112]
[1728128351907,0.056206,62267.0,62265.0,0.0318]
[1728128351908,0.056207,62266.0,62265.0,0.0318]
[1728128352113,0.12655462,62266.0,62265.0,0.0318]
[1728128354117,0.12655462,62266.0,62265.0,0.14576556]
[1728128354118,0.417007,62266.0,62265.0,0.14576556]
[1728128354312,0.417007,62266.0,62265.0,0.14676556]
[1728128354619,0.417007,62266.0,62265.0,0.22706962]
[1728128355612,0.417007,62266.0,62265.0,0.22709493]
[1728128358409,0.417007,62266.0,62265.0,0.001]
[1728128359615,0.417007,62266.0,62265.0,0.06523316]
[1728128360627,0.417007,62266.0,62265.0,0.001]
[1728128361120,0.53666368,62266.0,62265.0,0.001]
[1728128361520,0.48736396,62266.0,62265.0,0.001]
[1728128362422,0.53666371,62266.0,62265.0,0.001]
[1728128362624,0.48736396,62266.0,62265.0,0.001]
[1728128363321,0.12656396,62266.0,62265.0,0.001]
[1728128363525,0.84816396,62266.0,62265.0,0.001]
[1728128365223,0.84816416,62266.0,62265.0,0.001]
[1728128367728,0.84816416,62266.0,62260.0,0.0037]
[1728128367931,0.84816416,62266.0,62257.0,1e-08]
[1728128367932,0.176214,62258.0,62257.0,1e-08]
[1728128368228,0.176214,62258.0,62255.0,0.0308]
[1728128368229,0.056216,62256.0,62255.0,0.0308]
[1728128368429,0.08724126,62256.0,62255.0,0.0308]
[1728128369124,0.056216,62256.0,62255.0,0.14508639]
[1728128369825,0.056216,62256.0,62255.0,0.15608639]
[1728128370131,0.417016,62256.0,62255.0,0.15608639]
[1728128370929,0.44571532,62256.0,62255.0,0.16508639]
[1728128371427,0.08491532,62256.0,62255.0,0.16508639]
[1728128371618,0.44571532,62256.0,62255.0,0.16508639]
[1728128372520,0.44571532,62256.0,62255.0,0.24527823]
[1728128377033,0.44571532,62256.0,62255.0,0.13099184]
[1728128377034,0.08491532,62256.0,62255.0,0.13099184]
[1728128377230,0.44571532,62256.0,62255.0,0.13099184]
[1728128377736,0.44571532,62256.0,62255.0,0.24496768]
[1728128377942,0.08491532,62256.0,62255.0,0.24496768]
[1728128378534,0.08491532,62256.0,62255.0,0.24497147]
[1728128378535,0.44571532,62256.0,62255.0,0.24497147]
[1728128378834,0.08491532,62256.0,62255.0,0.24497147]
[1728128379037,0.44571532,62256.0,62255.0,0.13099184]
[1728128380329,0.08491532,62256.0,62255.0,0.13099184]
[1728128380527,0.44571532,62256.0,62255.0,0.24496893]
[1728128382432,0.44571532,62256.0,62255.0,0.16477709]
[1728128383129,0.44571532,62256.0,62255.0,0.0508]
[1728128383430,0.47674335,62256.0,62255.0,0.0508]
[1728128384336,0.47674338,62256.0,62255.0,0.0508]
[1728128385841,0.11594338,62256.0,62255.0,0.0508]
[1728128386136,0.47674338,62256.0,62255.0,0.0508]
[1728128387541,0.5160788,62256.0,62255.0,0.0508]
[1728128388745,0.1552788,62256.0,62255.0,0.0508]
[1728128389047,0.5160788,62256.0,62255.0,0.0508]
[1728128389850,0.1552788,62256.0,62255.0,0.0508]
[1728128390232,0.5160788,62256.0,62255.0,0.0508]
[1728128391142,0.5160788,62256.0,62255.0,0.16492116]
[1728128391143,0.08491532,62256.0,62255.0,0.16492116]
[1728128391345,0.44571532,62256.0,62255.0,0.16492116]
[1728128391539,0.44571532,62256.0,62255.0,0.26131698]
[1728128391845,0.08491532,62256.0,62255.0,0.26131698]
[1728128392249,0.44571532,62256.0,62255.0,0.26131698]
[1728128393046,0.08491532,62256.0,62255.0,0.26131698]
[1728128393651,0.44571532,62256.0,62255.0,0.26131698]
[1728128394836,0.08491532,62256.0,62255.0,0.26131698]
[1728128395443,0.44571532,62256.0,62255.0,0.26131698]
[1728128395656,0.44571532,62256.0,62255.0,0.16492116]
[1728128396948,0.08491532,62256.0,62255.0,0.16492116]
[1728128397151,0.44571532,62256.0,62255.0,0.16492116]
[1728128397647,0.44571532,62256.0,62255.0,0.30109347]
[1728128398041,0.08491532,62256.0,62255.0,0.30109347]
[1728128398349,0.47674336,62256.0,62255.0,0.0508]
[1728128398849,0.11594336,62256.0,62255.0,0.0508]
[1728128399354,0.47674336,62256.0,62255.0,0.0508]
[1728128400047,0.11594336,62256.0,62255.0,0.0508]
[1728128400250,0.47674336,62256.0,62255.0,0.0508]
[1728128402041,0.08491532,62256.0,62255.0,0.0508]
[1728128402243,0.11594336,62256.0,62255.0,0.0508]
[1728128402647,0.47674336,62256.0,62255.0,0.0508]
[1728128403355,0.11594336,62256.0,62255.0,0.0508]
[1728128403549,0.47674336,62256.0,62255.0,0.0508]
[1728128405054,0.47674341,62256.0,62255.0,0.0508]
[1728128406352,0.08491532,62256.0,62255.0,0.3011852]
[1728128406549,0.44571532,62256.0,62255.0,0.3011852]
[1728128407261,0.08491532,62256.0,62255.0,0.3011852]
[1728128407859,0.44571532,62256.0,62255.0,0.2703852]
[1728128408256,0.08491532,62256.0,62255.0,0.2703852]
[1728128408761,0.44571532,62256.0,62255.0,0.2703852]
[1728128409762,0.08491532,62256.0,62255.0,0.2703852]
[1728128410063,0.44571532,62256.0,62255.0,0.2703852]
[1728128410555,0.08491532,62256.0,62255.0,0.2703852]
[1728128410761,0.44571532,62256.0,62255.0,0.2703852]
[1728128411359,0.08491532,62256.0,62255.0,0.2703852]
[1728128411558,0.44571532,62256.0,62255.0,0.2703852]
[1728128412858,0.417016,62256.0,62255.0,0.2703852]
[1728128413262,0.417016,62256.0,62255.0,0.02]
[1728128413263,0.48737794,62256.0,62255.0,0.02]
[1728128414669,0.12657794,62256.0,62255.0,0.02]
[1728128414966,0.48737794,62256.0,62255.0,0.02]
[1728128415574,0.12657794,62256.0,62255.0,0.02]
[1728128415776,0.44804337,62256.0,62255.0,0.02]
[1728128416574,0.08724337,62256.0,62255.0,0.02]
[1728128416979,0.44804337,62256.0,62255.0,0.02]
[1728128417875,0.08724337,62256.0,62255.0,0.02]
[1728128418173,0.44804337,62256.0,62255.0,0.02]
[1728128418870,0.08724337,62256.0,62255.0,0.02]
[1728128419088,0.44804337,62256.0,62255.0,0.02]
[1728128419668,0.08724337,62256.0,62255.0,0.02]
[1728128419880,0.44804337,62256.0,62255.0,0.02]
[1728128421280,0.44804337,62256.0,62255.0,0.13416696]
[1728128421281,0.417016,62256.0,62255.0,0.13416696]
[1728128421788,0.056216,62256.0,62255.0,0.13416696]
[1728128422083,0.417016,62256.0,62255.0,0.13416696]
[1728128422286,0.056216,62256.0,62255.0,0.13416696]
[1728128422581,0.417016,62256.0,62255.0,0.13416696]
[1728128423788,0.056216,62256.0,62255.0,0.13416696]
[1728128424172,0.417016,62256.0,62255.0,0.13416696]
[1728128425779,0.056216,62256.0,62255.0,0.13416696]
[1728128425987,0.417016,62256.0,62255.0,0.13416696]
[1728128426292,0.417016,62256.0,62255.0,0.13417327]
[1728128427692,0.056216,62256.0,62255.0,0.13417327]
[1728128427884,0.417016,62256.0,62255.0,0.13417327]
[1728128428682,0.056216,62256.0,62255.0,0.13417327]
[1728128429083,0.417016,62256.0,62255.0,0.13417327]
[1728128429583,0.056216,62256.0,62255.0,0.13417327]
[1728128429886,0.417016,62256.0,62255.0,0.13417327]
[1728128434585,0.056216,62256.0,62255.0,0.13417327]
[1728128434790,0.417016,62256.0,62255.0,0.13417327]
[1728128435494,0.056216,62256.0,62255.0,0.13417327]
[1728128435793,0.417016,62256.0,62255.0,0.13417231]
[1728128436487,0.417016,62256.0,62255.0,0.02]
[1728128438493,0.056216,62256.0,62255.0,0.02]
[1728128438794,0.44804326,62256.0,62255.0,0.02]
[1728128441596,0.08724326,62256.0,62255.0,0.02]
[1728128441798,0.44804326,62256.0,62255.0,0.02]
[1728128443398,0.056216,62256.0,62255.0,0.23063098]
[1728128443701,0.417016,62256.0,62255.0,0.23063098]
[1728128445802,0.417016,62256.0,62255.0,0.13419535]
[1728128447303,0.056216,62256.0,62255.0,0.13419535]
[1728128447505,0.417016,62256.0,62255.0,0.13419535]
[1728128450411,0.417016,62256.0,62255.0,0.13420606]
[1728128451299,0.056216,62256.0,62255.0,0.13420606]
[1728128451500,0.417016,62256.0,62255.0,0.02]
[1728128452606,0.056216,62256.0,62255.0,0.02]
[1728128452804,0.417016,62256.0,62255.0,0.02]
[1728128456209,0.056216,62256.0,62255.0,0.02]
[1728128456812,0.417016,62256.0,62255.0,0.02]
[1728128458312,0.056216,62256.0,62255.0,0.02]
[1728128458617,0.417016,62256.0,62255.0,0.13420549]
[1728128459511,0.056216,62256.0,62255.0,0.13420549]
[1728128460406,0.417016,62256.0,62255.0,0.13420549]
[1728128460604,0.056216,62256.0,62255.0,0.13420549]
[1728128460813,0.417016,62256.0,62255.0,0.13420549]
[1728128461407,0.417016,62256.0,62255.0,0.23064112]
[1728128461614,0.3608,62256.0,62255.0,0.23064112]
[1728128462114,0.02902473,62257.0,62255.0,0.23064112]
[1728128462309,0.3608,62256.0,62255.0,0.11643563]
[1728128462617,0.417016,62256.0,62255.0,0.23063212]
[1728128463317,0.056216,62256.0,62255.0,0.23036001]
[1728128463514,0.417016,62256.0,62255.0,0.23036001]
[1728128464010,0.056216,62256.0,62255.0,0.23036001]
[1728128464322,0.417016,62256.0,62255.0,0.23036001]
[1728128465218,0.417016,62256.0,62255.0,0.11643563]
[1728128465609,0.056216,62256.0,62255.0,0.23036084]
[1728128465807,0.417016,62256.0,62255.0,0.23036084]
[1728128466715,0.056216,62256.0,62255.0,0.11643563]
[1728128466917,0.417016,62256.0,62255.0,0.11643563]
[1728128467123,0.056216,62256.0,62255.0,0.11643563]
[1728128467416,0.417016,62256.0,62255.0,0.23035972]
[1728128467614,0.056216,62256.0,62255.0,0.23035972]
[1728128468013,0.417016,62256.0,62255.0,0.23035972]
[1728128468412,0.056216,62256.0,62255.0,0.23035972]
[1728128468821,0.417016,62256.0,62255.0,0.23035972]
[1728128469520,0.056216,62256.0,62255.0,0.13392409]
[1728128469908,0.417016,62256.0,62255.0,0.13392409]
[1728128470109,0.056216,62256.0,62255.0,0.13392409]
[1728128470407,0.417016,62256.0,62255.0,0.13392409]
[1728128470618,0.056216,62256.0,62255.0,0.13392409]
[1728128470919,0.417016,62256.0,62255.0,0.13392409]
[1728128471218,0.056216,62256.0,62255.0,0.13392409]
[1728128471615,0.417016,62256.0,62255.0,0.13392409]
[1728128472002,0.056216,62256.0,62255.0,0.13392409]
[1728128472204,0.417016,62256.0,62255.0,0.13392409]
[1728128472408,0.056216,62256.0,62255.0,0.13392409]
[1728128472605,0.417016,62256.0,62255.0,0.13392409]
[1728128473206,0.417016,62256.0,62255.0,0.34426733]
[1728128474019,0.056216,62256.0,62255.0,0.23034324]
[1728128474222,0.417016,62256.0,62255.0,0.23034324]
[1728128474620,0.417016,62256.0,62255.0,0.11642309]
[1728128475218,0.056216,62256.0,62255.0,0.11642309]
[1728128475723,0.417016,62256.0,62255.0,0.11642309]
[1728128476311,0.056216,62256.0,62255.0,0.11642309]
[1728128476516,0.417016,62256.0,62255.0,0.11642309]
[1728128476923,0.056216,62256.0,62255.0,0.11642309]
[1728128477124,0.417016,62256.0,62255.0,0.11642309]
[1728128477321,0.056216,62256.0,62255.0,0.11642309]
[1728128477518,0.417016,62256.0,62255.0,0.11642309]
[1728128477718,0.056216,62256.0,62255.0,0.11642309]
[1728128477918,0.417016,62256.0,62255.0,0.11642309]
[1728128478116,0.48738051,62256.0,62255.0,0.02]
[1728128478322,0.53668553,62256.0,62255.0,0.02]
[1728128479430,0.17588553,62256.0,62255.0,0.02]
[1728128479626,0.53668553,62256.0,62255.0,0.02]
[1728128479926,0.17588553,62256.0,62255.0,0.02]
[1728128480625,0.53668553,62256.0,62255.0,0.02]
[1728128481522,0.417016,62256.0,62255.0,0.23035667]
[1728128485520,0.056216,62256.0,62255.0,0.23035667]
[1728128485722,0.417016,62256.0,62255.0,0.23038217]
[1728128486825,0.056216,62256.0,62255.0,0.13395908]
[1728128487025,0.417016,62256.0,62255.0,0.13395908]
[1728128488025,0.417016,62256.0,62255.0,0.23040447]
[1728128489834,0.44804442,62256.0,62255.0,0.02]
[1728128490030,0.08724442,62256.0,62255.0,0.02]
[1728128490431,0.417016,62256.0,62255.0,0.02]
[1728128490628,0.44804442,62256.0,62255.0,0.02]
[1728128491531,0.08724442,62256.0,62255.0,0.02]
[1728128491733,0.44804442,62256.0,62255.0,0.02]
[1728128493424,0.48738014,62256.0,62255.0,0.02]
[1728128495238,0.12658216,62256.0,62255.0,0.02]
[1728128495731,0.48738216,62256.0,62255.0,0.02]
[1728128496135,0.12658216,62256.0,62255.0,0.02]
[1728128496329,0.48738216,62256.0,62255.0,0.02]
[1728128496837,0.417016,62256.0,62255.0,0.13401012]
[1728128497026,0.056216,62256.0,62255.0,0.13401012]
[1728128497229,0.417016,62256.0,62255.0,0.13401012]
[1728128501040,0.056216,62256.0,62255.0,0.13401012]
[1728128501243,0.417016,62256.0,62255.0,0.13401012]
[1728128501834,0.056216,62256.0,62255.0,0.13401012]
[1728128502241,0.417016,62256.0,62255.0,0.13401012]
[1728128504140,0.056216,62256.0,62255.0,0.13401012]
[1728128504340,0.417016,62256.0,62255.0,0.13401012]
[1728128504841,0.44804526,62256.0,62255.0,0.02]
[1728128507338,0.08724526,62256.0,62255.0,0.02]
[1728128507549,0.44804526,62256.0,62255.0,0.02]
[1728128509272,0.056222,62249.0,62248.0,0.08341511]
[1728128509544,0.176222,62249.0,62248.0,0.07971511]
[1728128510640,0.176222,62249.0,62248.0,0.09371511]
[1728128511747,0.0797696,62249.0,62248.0,0.29475615]
[1728128512048,0.0807696,62249.0,62248.0,0.30775615]
[1728128512543,0.1369916,62249.0,62248.0,0.30775615]
[1728128519348,0.1369916,62249.0,62248.0,0.30622786]
[1728128521348,0.1369916,62249.0,62248.0,0.3062411]
[1728128521556,0.16630514,62249.0,62248.0,0.3062411]
[1728128522848,0.16630514,62249.0,62248.0,0.30625263]
[1728128523654,0.1369916,62249.0,62248.0,0.30625263]
[1728128526750,0.1369916,62249.0,62248.0,0.0585]
[1728128528351,0.057222,62249.0,62248.0,0.16294667]
[1728128528551,0.177222,62249.0,62248.0,0.16294667]
[1728128528751,0.177222,62249.0,62248.0,0.114723]
[1728128529945,0.177222,62249.0,62248.0,0.16294667]
[1728128534860,0.177222,62249.0,62248.0,0.36245165]
[1728128535848,0.057222,62249.0,62248.0,0.36245165]
[1728128536057,0.177222,62249.0,62248.0,0.36245165]
[1728128541666,0.12095863,62249.0,62248.0,0.36245165]
[1728128541863,0.12,62249.0,62248.0,0.16294146]
[1728128542578,0.176222,62249.0,62248.0,0.16294146]
[1728128546472,0.176222,62249.0,62248.0,0.114723]
[1728128546869,0.176222,62249.0,62248.0,0.16294146]
[1728128549467,0.12,62249.0,62248.0,0.16294146]
[1728128549867,0.12,62249.0,62248.0,0.36162382]
[1728128551563,0.12,62249.0,62248.0,0.36158848]
[1728128552778,0.176222,62249.0,62248.0,0.36158848]
[1728128556777,0.176222,62249.0,62248.0,0.114723]
[1728128556778,0.25655678,62249.0,62248.0,0.114723]
[1728128556979,0.29589341,62249.0,62248.0,0.114723]
[1728128557180,0.44047868,62249.0,62248.0,0.114723]
[1728128557481,0.29589341,62249.0,62248.0,0.114723]
[1728128559479,0.29589341,62249.0,62248.0,0.083223]
[1728128564887,0.176222,62249.0,62248.0,0.29233343]
[1728128566078,0.176222,62249.0,62248.0,0.17966845]
[1728128566283,0.176222,62249.0,62248.0,0.2923353]
[1728128566888,0.056222,62249.0,62248.0,0.2923353]
[1728128571293,0.056222,62249.0,62248.0,0.19588985]
[1728128571700,0.056222,62249.0,62248.0,0.29233431]
[1728128572800,0.056222,62249.0,62248.0,0.19588985]
[1728128572989,0.056222,62249.0,62248.0,0.29233387]
[1728128573498,0.056222,62249.0,62248.0,0.19588985]
[1728128577390,0.056222,62249.0,62248.0,0.33014785]
[1728128579892,0.12658712,62249.0,62248.0,0.083223]
[1728128583995,0.12658714,62249.0,62248.0,0.083223]
[1728128587107,0.056222,62249.0,62248.0,0.19586611]
[1728128588705,0.056222,62249.0,62248.0,0.195869]
[1728128590401,0.056222,62249.0,62248.0,0.139646]
[1728128591611,0.056222,62249.0,62248.0,0.22000538]
[1728128591795,0.056222,62249.0,62248.0,0.139646]
[1728128592508,0.056222,62249.0,62248.0,0.21999361]
[1728128592912,0.056222,62249.0,62248.0,0.22008847]
[1728128593307,0.056222,62249.0,62248.0,0.1397166]
[1728128593503,0.417022,62249.0,62248.0,0.1397166]
[1728128594011,0.056222,62249.0,62248.0,0.1397166]
[1728128594219,0.417022,62249.0,62248.0,0.1397166]
[1728128594406,0.417022,62249.0,62248.0,0.22006018]
[1728128595010,0.53669996,62249.0,62248.0,0.027]
[1728128595315,0.48739147,62249.0,62248.0,0.027]
[1728128595910,0.12659147,62249.0,62248.0,0.027]
[1728128596109,0.48739147,62249.0,62248.0,0.027]
[1728128596907,0.12659147,62249.0,62248.0,0.027]
[1728128597108,0.48739147,62249.0,62248.0,0.027]
[1728128599521,0.12659147,62249.0,62248.0,0.027]
[1728128600517,0.48739147,62249.0,62248.0,0.027]
[1728128601110,0.12659147,62249.0,62248.0,0.027]
[1728128601712,0.48739147,62249.0,62248.0,0.027]
[1728128601909,0.056222,62249.0,62248.0,0.13966489]
[1728128602719,0.417022,62249.0,62248.0,0.13966489]
[1728128603218,0.056222,62249.0,62248.0,0.13966489]
[1728128617027,0.09555963,62249.0,62248.0,0.027]
[1728128617326,0.12658941,62249.0,62248.0,0.027]
[1728128618126,0.15576899,62249.0,62248.0,0.027]
[1728128618329,0.12658941,62249.0,62248.0,0.027]
[1728128621835,0.12658895,62249.0,62248.0,0.027]
[1728128625034,0.056222,62249.0,62248.0,0.13964312]
[1728128626626,0.056222,62249.0,62248.0,0.1396143]
[1728128626933,0.056222,62249.0,62248.0,0.23605372]
[1728128627236,0.056222,62249.0,62248.0,0.1396143]
[1728128628033,0.056222,62249.0,62248.0,0.23605372]
[1728128628527,0.056222,62249.0,62248.0,0.1396143]
[1728128629231,0.056222,62249.0,62248.0,0.23605372]
[1728128629426,0.056222,62249.0,62248.0,0.1396143]
[1728128629733,0.056222,62249.0,62248.0,0.23605372]
[1728128631434,0.417022,62249.0,62248.0,0.23606517]
[1728128632032,0.48738948,62249.0,62248.0,0.027]
[1728128633333,0.12658948,62249.0,62248.0,0.027]
[1728128633530,0.48738948,62249.0,62248.0,0.027]
[1728128636441,0.48738968,62249.0,62248.0,0.027]
[1728128638434,0.12658968,62249.0,62248.0,0.027]
[1728128638740,0.48738968,62249.0,62248.0,0.027]
[1728128640133,0.417022,62249.0,62248.0,0.13963752]
[1728128646344,0.417022,62249.0,62248.0,0.23607694]
[1728128647142,0.48738985,62249.0,62248.0,0.027]
[1728128654261,0.417022,62249.0,62248.0,0.13967215]
[1728128659158,0.417022,62249.0,62248.0,0.13967219]
[1728128661357,0.417022,62249.0,62248.0,0.23611161]
[1728128661654,0.417022,62249.0,62248.0,0.13967219]
[1728128662360,0.417022,62249.0,62248.0,0.23611161]
[1728128664952,0.417022,62249.0,62248.0,0.13967219]
[1728128668861,0.417022,62249.0,62248.0,0.13968276]
[1728128669264,0.48739016,62249.0,62248.0,0.027]
[1728128673875,0.53669789,62249.0,62248.0,0.027]
[1728128674172,0.48739016,62249.0,62248.0,0.027]
[1728128674562,0.53669789,62249.0,62248.0,0.027]
[1728128677272,0.53669789,62249.0,62248.0,0.13950717]
[1728128677273,0.417022,62249.0,62248.0,0.13950717]
[1728128678371,0.417022,62249.0,62248.0,0.13950745]
[1728128679470,0.056222,62249.0,62248.0,0.13950745]
[1728128679675,0.417022,62249.0,62248.0,0.13950745]
[1728128680774,0.056222,62249.0,62248.0,0.13950745]
[1728128681076,0.417022,62249.0,62248.0,0.13950745]
[1728128682670,0.056222,62249.0,62248.0,0.13950745]
[1728128682869,0.417022,62249.0,62248.0,0.13950745]
[1728128683272,0.417022,62249.0,62248.0,0.13950232]
[1728128684274,0.48739027,62249.0,62248.0,0.027]
[1728128692276,0.417022,62249.0,62248.0,0.13951073]
[1728128693579,0.056222,62249.0,62248.0,0.13951073]
[1728128693880,0.417022,62249.0,62248.0,0.13951073]
[1728128695476,0.056222,62249.0,62248.0,0.13951073]
[1728128695680,0.417022,62249.0,62248.0,0.13951073]
[1728128697880,0.417022,62249.0,62248.0,0.027]
[1728128698083,0.417022,62249.0,62248.0,0.13950904]
[1728128701487,0.417022,62249.0,62248.0,0.13951377]
[1728128704080,0.056222,62249.0,62248.0,0.13951377]
[1728128704276,0.417022,62249.0,62248.0,0.13951377]
[1728128704787,0.056222,62249.0,62248.0,0.13951377]
[1728128705188,0.417022,62249.0,62248.0,0.13951377]
[1728128705782,0.056222,62249.0,62248.0,0.13951377]
[1728128705987,0.417022,62249.0,62248.0,0.13951377]
[1728128706294,0.417022,62249.0,62248.0,0.13951535]
[1728128706788,0.056222,62249.0,62248.0,0.13951535]
[1728128706988,0.417022,62249.0,62248.0,0.13951535]
[1728128707191,0.48739041,62249.0,62248.0,0.027]
[1728128709995,0.12659041,62249.0,62248.0,0.027]
[1728128710194,0.48739041,62249.0,62248.0,0.027]
[1728128712198,0.53669816,62249.0,62248.0,0.027]